fUSD/lending_fUSD_20250629
["ID","MTS","AMOUNT","RATE_DAILY","PERIOD"]
[368476361,1751189466693,-164.40384505,0.00027673,5]
[368476362,1751189466702,-453.30319219,0.00027673,5]
[368476363,1751189466712,-377.7449245,0.0002768,2]
[368476364,1751189466724,-416.41808148,0.0002768,2]
[368476365,1751189466733,-150.0,0.00027686,2]
[368476366,1751189466742,-150.0,0.00027692,2]
[368476367,1751189466752,-499.37723392,0.00027696,2]
[368476368,1751189466762,-2525.23249206,0.00027697,2]
[368476369,1751189466780,-1054.29094662,0.00027697,2]
[368476370,1751189466790,-150.0,0.00027697,2]
[368476371,1751189466799,-499.37723392,0.00027698,2]
[368476372,1751189466809,-150.0,0.000277,2]
[368476373,1751189466819,-7300.0,0.000277,10]
[368476374,1751189466828,-5032.80995466,0.000277,2]
[368476375,1751189466837,-3391.8,0.000277,2]
[368476376,1751189466847,-150.0,0.00027701,2]
[368476377,1751189466856,-3579.52343868,0.00027702,2]
[368476378,1751189466868,-499.37723392,0.00027703,2]
[368476379,1751189466878,-202.95260643,0.00027703,2]
[368476380,1751189466888,-150.0,0.00027706,2]
[368476381,1751189466898,-3579.52343868,0.00027708,2]
[368476382,1751189466908,-794.16300598,0.00027709,2]
[368476383,1751189466917,-3579.52343868,0.0002771,2]
[368476384,1751189466927,-168.0,0.00027712,2]
[368476385,1751189466936,-150.0,0.00027713,2]
[368476386,1751189466946,-150.0,0.00027718,2]
[368476387,1751189466956,-2638.51549405,0.00027722,2]
[368476388,1751189466966,-499.37723392,0.00027724,2]
[368476389,1751189466976,-150.0,0.00027725,2]
[368476390,1751189466985,-3579.52343868,0.00027726,2]
[368476391,1751189466995,-150.0,0.00027728,2]
[368476392,1751189467005,-150.0,0.0002774,2]
[368476393,1751189467015,-150.0,0.0002774,2]
[368476394,1751189467024,-3579.52343868,0.00027742,2]
[368476395,1751189467034,-150.0,0.00027744,2]
[368476396,1751189467043,-5105.24901576,0.00027745,2]
[368476397,1751189467053,-5105.24901576,0.00027747,2]
[368476398,1751189467062,-531.97236249,0.00027754,2]
[368476399,1751189467071,-170.83487488,0.00027754,2]
[368476400,1751189467081,-150.0,0.00027758,2]
[368476401,1751189467090,-312.2397492,0.00027762,17]
[368476402,1751189467100,-200.0,0.00027767,2]
[368476403,1751189467109,-200.0,0.00027768,2]
[368476404,1751189467119,-150.0,0.0002777,2]
[368476405,1751189467128,-499.37723392,0.0002777,2]
[368476406,1751189467137,-3579.52343868,0.0002777,2]
[368476407,1751189467147,-5105.24901576,0.00027776,2]
[368476408,1751189467156,-157.86509501,0.00027777,2]
[368476409,1751189467166,-3579.52343868,0.00027777,2]
[368476410,1751189467176,-152.2596508,0.00027779,2]
[368476411,1751189467185,-499.37723392,0.00027782,2]
[368476412,1751189467194,-2638.51549405,0.00027783,2]
[368476413,1751189467204,-150.0,0.00027788,2]
[368476414,1751189467213,-150.0,0.00027789,2]
[368476415,1751189467223,-794.16300598,0.00027796,2]
[368476416,1751189467233,-499.37723392,0.00027798,2]
[368476417,1751189467242,-1400.0,0.000278,10]
[368476418,1751189467251,-150.0,0.000278,2]
[368476419,1751189467261,-150.0,0.00027801,2]
[368476420,1751189467270,-150.0,0.00027803,2]
[368476421,1751189467280,-150.0,0.00027805,2]
[368476422,1751189467289,-5105.24901576,0.00027808,2]
[368476423,1751189467298,-499.37723392,0.00027809,2]
[368476424,1751189467307,-150.0,0.00027813,2]
[368476425,1751189467317,-591.27,0.00027815,17]
[368476426,1751189467326,-462.14372158,0.00027821,2]
[368476427,1751189467335,-300.0,0.00027824,2]
[368476428,1751189467344,-150.0,0.00027824,2]
[368476429,1751189467353,-150.0,0.00027824,2]
[368476430,1751189467362,-794.16300598,0.00027826,2]
[368476431,1751189467371,-3579.52343868,0.00027831,2]
[368476432,1751189467380,-794.16300598,0.00027835,2]
[368476433,1751189467391,-794.16300598,0.00027835,2]
[368476434,1751189467400,-2110.0,0.00027835,2]
[368476435,1751189467409,-794.16300598,0.00027843,2]
[368476436,1751189467418,-2638.51549405,0.00027845,2]
[368476437,1751189467429,-256.8437342,0.00027845,2]
[368476438,1751189467438,-1189.40998072,0.00027845,2]
[368476439,1751189467449,-159.88415941,0.00027845,2]
[368476440,1751189467459,-499.37723392,0.00027851,2]
[368476441,1751189467468,-200.0,0.00027853,2]
[368476442,1751189467477,-794.16300598,0.00027854,2]
[368476443,1751189467487,-3579.52343868,0.00027859,2]
[368476444,1751189467496,-794.16300598,0.00027859,2]
[368476445,1751189467506,-150.0,0.0002786,2]
[368476446,1751189467515,-5105.24901576,0.00027866,2]
[368476447,1751189467525,-499.37723392,0.0002787,2]
[368476448,1751189467535,-300.0,0.00027876,2]
[368476449,1751189467544,-537.85627842,0.00027879,2]
[368476450,1751189467554,-794.16300598,0.00027887,2]
[368476451,1751189467565,-200.0,0.0002789,2]
[368476452,1751189467574,-150.0,0.0002789,2]
[368476453,1751189467584,-154.57968916,0.000279,2]
[368476454,1751189467594,-1400.0,0.000279,10]
[368476455,1751189467604,-154.57968908,0.000279,2]
[368476456,1751189467615,-154.57968908,0.000279,2]
[368476457,1751189467624,-154.57968908,0.000279,2]
[368476458,1751189467633,-154.57968908,0.000279,2]
[368476459,1751189467643,-154.57968908,0.000279,2]
[368476460,1751189467652,-154.57968908,0.000279,2]
[368476461,1751189467663,-154.57968908,0.000279,2]
[368476462,1751189467673,-154.57968908,0.000279,2]
[368476463,1751189467683,-154.57968908,0.000279,2]
[368476464,1751189467693,-240.0,0.000279,2]
[368476465,1751189467703,-150.0,0.00027919,2]
[368476466,1751189467714,-150.0,0.0002792,2]
[368476467,1751189467723,-1000.0,0.00027921,5]
[368476468,1751189467733,-999.92083915,0.00027921,5]
[368476469,1751189467743,-1000.0,0.00027921,5]
[368476470,1751189467752,-1000.0,0.00027921,2]
[368476471,1751189467762,-150.0,0.00027921,2]
[368476472,1751189467771,-168.0,0.00027934,2]
[368476473,1751189467781,-500.0,0.00027934,3]
[368476474,1751189467790,-500.0,0.00027934,3]
[368476475,1751189467801,-312.2397492,0.00027934,18]
[368476476,1751189467810,-150.0,0.00027936,2]
[368476477,1751189467819,-150.0,0.00027942,2]
[368476478,1751189467830,-198.97225457,0.00027942,2]
[368476479,1751189467839,-300.0,0.00027943,10]
[368476480,1751189467848,-666.0,0.00027943,10]
[368476481,1751189467858,-179.68966691,0.00027943,10]
[368476482,1751189467872,-800.0,0.00027944,7]
[368476483,1751189467881,-300.0,0.00027944,10]
[368476484,1751189467891,-490.0,0.00027944,3]
[368476485,1751189467901,-490.0,0.00027944,3]
[368476486,1751189467910,-558.81014873,0.00027944,3]
[368476487,1751189467921,-342.02389633,0.00027944,3]
[368476488,1751189467931,-801.61,0.00027944,3]
[368476489,1751189467942,-490.0,0.00027944,3]
[368476490,1751189467951,-1038.75,0.00027944,3]
[368476491,1751189467961,-1079.53,0.00027944,3]
[368476492,1751189467970,-490.0,0.00027944,3]
[368476493,1751189467980,-588.0,0.00027944,3]
[368476494,1751189467989,-490.0,0.00027944,3]
[368476495,1751189467998,-490.0,0.00027944,3]
[368476496,1751189468008,-490.0,0.00027944,3]
[368476497,1751189468017,-490.0,0.00027944,3]
[368476498,1751189468027,-490.0,0.00027944,3]
[368476499,1751189468036,-473.54820683,0.00027944,3]
[368476500,1751189468046,-490.0,0.00027944,3]
[368476501,1751189468055,-1632.76,0.00027944,3]
[368476502,1751189468065,-490.0,0.00027944,3]
[368476503,1751189468074,-490.0,0.00027944,3]
[368476504,1751189468083,-490.0,0.00027944,3]
[368476505,1751189468092,-490.0,0.00027944,3]
[368476506,1751189468102,-610.31,0.00027944,3]
[368476507,1751189468112,-490.0,0.00027944,3]
[368476508,1751189468121,-490.0,0.00027944,3]
[368476509,1751189468130,-490.0,0.00027944,3]
[368476510,1751189468140,-490.0,0.00027944,3]
[368476511,1751189468150,-562.96,0.00027944,3]
[368476512,1751189468160,-490.0,0.00027944,3]
[368476513,1751189468169,-493.73296539,0.00027944,3]
[368476514,1751189468178,-509.98,0.00027944,3]
[368476515,1751189468188,-490.0,0.00027944,3]
[368476516,1751189468197,-490.0,0.00027944,3]
[368476517,1751189468206,-1004.55,0.00027944,3]
[368476518,1751189468216,-1218.27,0.00027944,3]
[368476519,1751189468226,-490.0,0.00027944,3]
[368476520,1751189468235,-490.0,0.00027944,3]
[368476521,1751189468245,-490.0,0.00027944,3]
[368476522,1751189468255,-490.0,0.00027944,3]
[368476523,1751189468264,-490.0,0.00027944,3]
[368476524,1751189468274,-490.0,0.00027944,3]
[368476525,1751189468283,-490.0,0.00027944,3]
[368476526,1751189468303,-490.0,0.00027944,3]
[368476527,1751189468319,-740.78,0.00027944,3]
[368476528,1751189468335,-490.0,0.00027944,3]
[368476529,1751189468352,-490.0,0.00027944,3]
[368476530,1751189468369,-490.0,0.00027944,3]
[368476531,1751189468383,-490.0,0.00027944,3]
[368476532,1751189468399,-498.25616863,0.00027944,3]
[368476533,1751189468415,-711.75,0.00027944,3]
[368476534,1751189468432,-490.0,0.00027944,3]
[368476535,1751189468450,-490.0,0.00027944,3]
[368476536,1751189468467,-628.12,0.00027944,3]
[368476537,1751189468485,-490.0,0.00027944,3]
[368476538,1751189468501,-490.0,0.00027944,3]
[368476539,1751189468517,-859.36,0.00027944,3]
[368476540,1751189468533,-490.0,0.00027944,3]
[368476541,1751189468547,-473.57054251,0.00027944,3]
[368476542,1751189468560,-490.0,0.00027944,3]
[368476543,1751189468576,-490.0,0.00027944,3]
[368476544,1751189468590,-490.0,0.00027944,3]
[368476545,1751189468602,-490.0,0.00027944,3]
[368476546,1751189468618,-323.71215007,0.00027944,3]
[368476547,1751189468632,-214.54421706,0.00027944,3]
[368476548,1751189468645,-490.0,0.00027944,3]
[368476549,1751189468658,-490.0,0.00027944,3]
[368476550,1751189468671,-490.0,0.00027944,3]
[368476551,1751189468692,-490.0,0.00027944,3]
[368476552,1751189468707,-490.0,0.00027944,3]
[368476553,1751189468720,-490.0,0.00027944,3]
[368476554,1751189468734,-490.0,0.00027944,3]
[368476555,1751189468747,-502.18289488,0.00027944,3]
[368476556,1751189468762,-490.0,0.00027944,3]
[368476557,1751189468775,-490.0,0.00027944,3]
[368476558,1751189468789,-600.05055875,0.00027944,3]
[368476559,1751189468802,-480.71919683,0.00027944,3]
[368476560,1751189468815,-437.89490591,0.00027944,3]
[368476561,1751189468829,-490.0,0.00027944,3]
[368476562,1751189468842,-490.0,0.00027944,3]
[368476563,1751189468855,-490.0,0.00027944,3]
[368476564,1751189468871,-559.52,0.00027944,3]
[368476565,1751189468884,-490.0,0.00027944,3]
[368476566,1751189468898,-490.0,0.00027944,3]
[368476567,1751189468912,-490.0,0.00027944,3]
[368476568,1751189468926,-1075.96,0.00027944,3]
[368476569,1751189468940,-671.22,0.00027944,3]
[368476570,1751189468953,-490.0,0.00027944,3]
[368476571,1751189468967,-925.57,0.00027944,3]
[368476572,1751189468981,-490.0,0.00027944,3]
[368476573,1751189468995,-490.0,0.00027944,3]
[368476574,1751189469009,-490.0,0.00027944,3]
[368476575,1751189469024,-548.26,0.00027944,3]
[368476576,1751189469037,-490.0,0.00027944,3]
[368476577,1751189469051,-490.0,0.00027944,3]
[368476578,1751189469065,-490.0,0.00027944,3]
[368476579,1751189469078,-490.0,0.00027944,3]
[368476580,1751189469090,-490.0,0.00027944,3]
[368476581,1751189469103,-490.0,0.00027944,3]
[368476582,1751189469115,-634.69,0.00027944,3]
[368476583,1751189469128,-1012.64,0.00027944,3]
[368476584,1751189469142,-971.86,0.00027944,3]
[368476585,1751189469155,-490.0,0.00027944,3]
[368476586,1751189469168,-555.65,0.00027944,3]
[368476587,1751189469180,-490.0,0.00027944,3]
[368476588,1751189469193,-490.0,0.00027944,3]
[368476589,1751189469206,-490.0,0.00027944,3]
[368476590,1751189469220,-1621.92,0.00027944,3]
[368476591,1751189469233,-490.0,0.00027944,3]
[368476592,1751189469246,-510.20819298,0.00027944,3]
[368476593,1751189469259,-1161.41,0.00027944,3]
[368476594,1751189469272,-490.0,0.00027944,3]
[368476595,1751189469286,-490.0,0.00027944,3]
[368476596,1751189469298,-1010.98,0.00027944,3]
[368476597,1751189469312,-490.0,0.00027944,3]
[368476598,1751189469324,-261.48737437,0.00027944,3]
[368476599,1751189469338,-490.0,0.00027944,3]
[368476600,1751189469352,-672.29,0.00027944,3]
[368476601,1751189469366,-554.38,0.00027944,3]
[368476602,1751189469380,-508.03,0.00027944,3]
[368476603,1751189469392,-490.0,0.00027944,3]
[368476604,1751189469405,-933.36,0.00027944,3]
[368476605,1751189469418,-506.79,0.00027944,3]
[368476606,1751189469430,-490.0,0.00027944,3]
[368476607,1751189469443,-2397.91,0.00027944,3]
[368476608,1751189469456,-477.27552632,0.00027944,3]
[368476609,1751189469469,-476.44912905,0.00027944,3]
[368476610,1751189469482,-490.0,0.00027944,3]
[368476611,1751189469494,-490.0,0.00027944,3]
[368476612,1751189469507,-490.0,0.00027944,3]
[368476613,1751189469520,-2172.31,0.00027944,3]
[368476614,1751189469533,-811.07,0.00027944,3]
[368476615,1751189469546,-490.0,0.00027944,3]
[368476616,1751189469559,-490.0,0.00027944,3]
[368476617,1751189469571,-490.0,0.00027944,3]
[368476618,1751189469584,-1866.33,0.00027944,3]
[368476619,1751189469597,-490.0,0.00027944,3]
[368476620,1751189469610,-933.26,0.00027944,3]
[368476621,1751189469623,-783.43,0.00027944,3]
[368476622,1751189469636,-494.85375104,0.00027944,3]
[368476623,1751189469649,-490.0,0.00027944,3]
[368476624,1751189469663,-2828.11,0.00027944,3]
[368476625,1751189469676,-490.0,0.00027944,3]
[368476626,1751189469689,-1374.78,0.00027944,3]
[368476627,1751189469702,-490.0,0.00027944,3]
[368476628,1751189469716,-1751.17,0.00027944,3]
[368476629,1751189469729,-834.96,0.00027944,3]
[368476630,1751189469742,-490.0,0.00027944,3]
[368476631,1751189469754,-490.0,0.00027944,3]
[368476632,1751189469767,-490.0,0.00027944,3]
[368476633,1751189469780,-1333.76,0.00027944,3]
[368476634,1751189469794,-1784.59,0.00027944,3]
[368476635,1751189469807,-1479.84,0.00027944,3]
[368476636,1751189469820,-490.0,0.00027944,3]
[368476637,1751189469834,-490.0,0.00027944,3]
[368476638,1751189469847,-490.0,0.00027944,3]
[368476639,1751189469861,-490.0,0.00027944,3]
[368476640,1751189469876,-1718.67,0.00027944,3]
[368476641,1751189469889,-1810.15,0.00027944,3]
[368476642,1751189469902,-828.68,0.00027944,3]
[368476643,1751189469916,-490.0,0.00027944,3]
[368476644,1751189469930,-490.0,0.00027944,3]
[368476645,1751189469944,-2306.63,0.00027944,3]
[368476646,1751189469957,-490.0,0.00027944,3]
[368476647,1751189469971,-1857.36,0.00027944,3]
[368476648,1751189469985,-915.99,0.00027944,3]
[368476649,1751189469998,-490.0,0.00027944,3]
[368476650,1751189470013,-490.0,0.00027944,3]
[368476651,1751189470025,-490.0,0.00027944,3]
[368476652,1751189470039,-490.0,0.00027944,3]
[368476653,1751189470052,-2033.74,0.00027944,3]
[368476654,1751189470064,-632.21,0.00027944,3]
[368476655,1751189470077,-300.0,0.00027944,3]
[368476656,1751189470090,-490.0,0.00027944,3]
[368476657,1751189470102,-2892.07,0.00027944,3]
[368476658,1751189470115,-490.0,0.00027944,3]
[368476659,1751189470129,-490.0,0.00027944,3]
[368476660,1751189470142,-235.790028,0.00027944,7]
[368476661,1751189470157,-235.790028,0.00027944,7]
[368476662,1751189470170,-1747.83,0.00027944,3]
[368476663,1751189470183,-1157.08,0.00027944,3]
[368476664,1751189470196,-490.0,0.00027944,3]
[368476665,1751189470209,-490.0,0.00027944,3]
[368476666,1751189470223,-490.0,0.00027944,3]
[368476667,1751189470237,-412.85,0.00027944,3]
[368476668,1751189470249,-490.0,0.00027944,3]
[368476669,1751189470263,-490.0,0.00027944,3]
[368476670,1751189470275,-1123.67,0.00027944,3]
[368476671,1751189470288,-318.15,0.00027944,3]
[368476672,1751189470300,-1273.17,0.00027944,3]
[368476673,1751189470313,-1365.15,0.00027944,3]
[368476674,1751189470325,-490.0,0.00027944,3]
[368476675,1751189470339,-2236.23,0.00027944,3]
[368476676,1751189470351,-490.0,0.00027944,3]
[368476677,1751189470360,-490.0,0.00027944,3]
[368476678,1751189470369,-490.0,0.00027944,3]
[368476679,1751189470379,-490.0,0.00027944,3]
[368476680,1751189470388,-2580.28,0.00027944,3]
[368476681,1751189470399,-1099.21,0.00027944,3]
[368476682,1751189470408,-490.0,0.00027944,3]
[368476683,1751189470417,-490.0,0.00027944,3]
[368476684,1751189470426,-770.73,0.00027944,3]
[368476685,1751189470435,-490.0,0.00027944,3]
[368476686,1751189470444,-490.0,0.00027944,3]
[368476687,1751189470453,-615.64,0.00027944,3]
[368476688,1751189470462,-559.04,0.00027944,3]
[368476689,1751189470471,-490.0,0.00027944,3]
[368476690,1751189470481,-1755.09,0.00027944,3]
[368476691,1751189470490,-2220.75,0.00027944,3]
[368476692,1751189470499,-490.0,0.00027944,3]
[368476693,1751189470508,-800.6,0.00027944,3]
[368476694,1751189470518,-2173.61,0.00027944,3]
[368476695,1751189470527,-490.0,0.00027944,3]
[368476696,1751189470537,-490.0,0.00027944,3]
[368476697,1751189470546,-796.44,0.00027944,3]
[368476698,1751189470556,-490.0,0.00027944,3]
[368476699,1751189470565,-1415.28,0.00027944,3]
[368476700,1751189470575,-1098.61,0.00027944,3]
[368476701,1751189470584,-1467.66,0.00027944,3]
[368476702,1751189470594,-846.19,0.00027944,3]
[368476703,1751189470603,-2437.95,0.00027944,3]
[368476704,1751189470613,-490.0,0.00027944,3]
[368476705,1751189470622,-490.0,0.00027944,3]
[368476706,1751189470631,-490.0,0.00027944,3]
[368476707,1751189470641,-1063.24,0.00027944,3]
[368476708,1751189470650,-1387.23,0.00027944,3]
[368476709,1751189470659,-490.0,0.00027944,3]
[368476710,1751189470669,-590.37,0.00027944,3]
[368476711,1751189470679,-490.0,0.00027944,3]
[368476712,1751189470688,-490.38,0.00027944,3]
[368476713,1751189470698,-490.0,0.00027944,3]
[368476714,1751189470707,-835.3,0.00027944,3]
[368476715,1751189470716,-490.0,0.00027944,3]
[368476716,1751189470725,-490.0,0.00027944,3]
[368476717,1751189470735,-592.65,0.00027944,3]
[368476718,1751189470744,-490.0,0.00027944,3]
[368476719,1751189470754,-592.65,0.00027944,3]
[368476720,1751189470763,-592.65,0.00027944,3]
[368476721,1751189470773,-592.65,0.00027944,3]
[368476722,1751189470784,-592.65,0.00027944,3]
[368476723,1751189470793,-490.0,0.00027944,3]
[368476724,1751189470803,-592.65,0.00027944,3]
[368476725,1751189470813,-1775.1,0.00027944,3]
[368476726,1751189470822,-849.15,0.00027944,3]
[368476727,1751189470832,-490.0,0.00027944,3]
[368476728,1751189470841,-490.0,0.00027944,3]
[368476729,1751189470851,-490.0,0.00027944,3]
[368476730,1751189470860,-1422.21,0.00027944,3]
[368476731,1751189470872,-718.95,0.00027944,3]
[368476732,1751189470882,-983.22,0.00027944,3]
[368476733,1751189470892,-490.0,0.00027944,3]
[368476734,1751189470902,-875.61,0.00027944,3]
[368476735,1751189470911,-490.0,0.00027944,3]
[368476736,1751189470921,-490.0,0.00027944,3]
[368476737,1751189471544,-1063.79,0.00027944,3]
[368476738,1751189471579,-1325.28,0.00027944,3]
[368476739,1751189471603,-515.05,0.00027944,3]
[368476740,1751189471623,-682.09,0.00027944,3]
[368476741,1751189471636,-915.0,0.00027944,3]
[368476742,1751189471645,-490.0,0.00027944,3]
[368476743,1751189471655,-490.0,0.00027944,3]
[368476744,1751189471665,-490.0,0.00027944,3]
[368476745,1751189471674,-490.0,0.00027944,3]
[368476746,1751189471683,-490.0,0.00027944,3]
[368476747,1751189471693,-666.85,0.00027944,3]
[368476748,1751189471702,-490.0,0.00027944,3]
[368476749,1751189471712,-490.0,0.00027944,3]
[368476750,1751189471721,-490.0,0.00027944,3]
[368476751,1751189471730,-490.0,0.00027944,3]
[368476752,1751189471739,-1983.07,0.00027944,3]
[368476753,1751189471748,-522.35254805,0.00027944,3]
[368476754,1751189471758,-490.0,0.00027944,3]
[368476755,1751189471767,-535.35,0.00027944,3]
[368476756,1751189471777,-490.0,0.00027944,3]
[368476757,1751189471786,-1138.28,0.00027944,3]
[368476758,1751189471795,-1028.17,0.00027944,3]
[368476759,1751189471805,-490.0,0.00027944,3]
[368476760,1751189471814,-1028.5,0.00027944,3]
[368476761,1751189471823,-2231.94,0.00027944,3]
[368476762,1751189471833,-233.55962987,0.00027944,3]
[368476763,1751189471842,-490.0,0.00027944,3]
[368476764,1751189471852,-500.0,0.00027944,3]
[368476765,1751189471861,-1757.38,0.00027944,3]
[368476766,1751189471873,-856.66,0.00027944,3]
[368476767,1751189471883,-490.0,0.00027944,3]
[368476768,1751189471892,-1579.5,0.00027944,3]
[368476769,1751189471902,-490.0,0.00027944,3]
[368476770,1751189471913,-264.61520854,0.00027944,3]
[368476771,1751189471923,-1094.72,0.00027944,3]
[368476772,1751189471933,-490.0,0.00027944,3]
[368476773,1751189471943,-494.21,0.00027944,3]
[368476774,1751189471953,-490.0,0.00027944,3]
[368476775,1751189471962,-2654.18,0.00027944,3]
[368476776,1751189471972,-1070.04,0.00027944,3]
[368476777,1751189471981,-490.0,0.00027944,3]
[368476778,1751189471990,-490.0,0.00027944,3]
[368476779,1751189472003,-490.0,0.00027944,3]
[368476780,1751189472012,-297.35183548,0.00027944,3]
[368476781,1751189472021,-490.0,0.00027944,3]
[368476782,1751189472030,-490.0,0.00027944,3]
[368476783,1751189472039,-301.22575573,0.00027944,3]
[368476784,1751189472048,-519.05,0.00027944,3]
[368476785,1751189472057,-1748.89,0.00027944,3]
[368476786,1751189472067,-490.0,0.00027944,3]
[368476787,1751189472076,-887.78,0.00027944,3]
[368476788,1751189472085,-490.0,0.00027944,3]
[368476789,1751189472094,-500.0,0.00027944,7]
[368476790,1751189472103,-490.0,0.00027944,3]
[368476791,1751189472113,-490.0,0.00027944,3]
[368476792,1751189472122,-490.0,0.00027944,3]
[368476793,1751189472133,-1702.68,0.00027944,3]
[368476794,1751189472143,-490.0,0.00027944,3]
[368476795,1751189472155,-1025.11,0.00027944,3]
[368476796,1751189472165,-1366.85,0.00027944,3]
[368476797,1751189472175,-500.0,0.00027944,3]
[368476798,1751189472184,-500.0,0.00027944,3]
[368476799,1751189472194,-500.0,0.00027944,3]
[368476800,1751189472203,-500.0,0.00027944,3]
[368476801,1751189472213,-500.0,0.00027944,3]
[368476802,1751189472222,-905.54,0.00027944,3]
[368476803,1751189472231,-490.0,0.00027944,3]
[368476804,1751189472241,-1294.0,0.00027944,3]
[368476805,1751189472250,-613.39,0.00027944,3]
[368476806,1751189472259,-490.0,0.00027944,3]
[368476807,1751189472268,-490.0,0.00027944,3]
[368476808,1751189472278,-490.0,0.00027944,3]
[368476809,1751189472287,-1443.66,0.00027944,3]
[368476810,1751189472297,-490.0,0.00027944,3]
[368476811,1751189472306,-490.0,0.00027944,3]
[368476812,1751189472316,-490.0,0.00027944,3]
[368476813,1751189472325,-547.5,0.00027944,3]
[368476814,1751189472335,-490.0,0.00027944,3]
[368476815,1751189472344,-712.25,0.00027944,3]
[368476816,1751189472353,-2682.94,0.00027944,3]
[368476817,1751189472362,-490.0,0.00027944,3]
[368476818,1751189472371,-2022.98,0.00027944,3]
[368476819,1751189472380,-490.0,0.00027944,3]
[368476820,1751189472389,-810.47,0.00027944,3]
[368476821,1751189472398,-2334.91,0.00027944,3]
[368476822,1751189472407,-490.0,0.00027944,3]
[368476823,1751189472417,-490.0,0.00027944,3]
[368476824,1751189472426,-490.0,0.00027944,3]
[368476825,1751189472435,-736.51,0.00027945,3]
[368476826,1751189472445,-490.0,0.00027945,3]
[368476827,1751189472454,-900.85,0.00027945,3]
[368476828,1751189472463,-539.20877117,0.00027945,3]
[368476829,1751189472472,-490.0,0.00027945,3]
[368476830,1751189472481,-1027.26,0.00027945,3]
[368476831,1751189472490,-2908.954241,0.00027945,3]
[368476832,1751189472499,-790.26,0.00027945,3]
[368476833,1751189472508,-490.0,0.00027945,3]
[368476834,1751189472518,-2275.369949,0.00027945,3]
[368476835,1751189472527,-583.56,0.00027945,3]
[368476836,1751189472536,-151.887036,0.00027945,3]
[368476837,1751189472545,-490.0,0.00027945,3]
[368476838,1751189472554,-1110.1,0.00027945,3]
[368476839,1751189472564,-490.0,0.00027945,3]
[368476840,1751189472573,-490.0,0.00027945,3]
[368476841,1751189472583,-490.0,0.00027945,3]
[368476842,1751189472592,-535.93,0.00027945,3]
[368476843,1751189472601,-490.0,0.00027945,3]
[368476844,1751189472611,-490.0,0.00027945,3]
[368476845,1751189472620,-490.0,0.00027945,3]
[368476846,1751189472629,-490.0,0.00027945,3]
[368476847,1751189472639,-490.0,0.00027945,3]
[368476848,1751189472648,-490.0,0.00027945,3]
[368476849,1751189472658,-490.0,0.00027945,3]
[368476850,1751189472667,-490.0,0.00027945,3]
[368476851,1751189472677,-490.0,0.00027945,3]
[368476852,1751189472687,-490.0,0.00027945,3]
[368476853,1751189472696,-490.0,0.00027945,3]
[368476854,1751189472705,-553.18,0.00027945,3]
[368476855,1751189472714,-907.34,0.00027945,3]
[368476856,1751189472723,-490.0,0.00027945,3]
[368476857,1751189472733,-490.0,0.00027945,3]
[368476858,1751189472742,-500.0,0.00027945,3]
[368476859,1751189472751,-490.0,0.00027945,3]
[368476860,1751189472761,-647.97,0.00027945,3]